Cogmind - Beta 10.2 @@@ ROGUE MODE // 2020.11.08 @ 10:26:17 // Halloween2020/ForbiddenLore Player: Demise Result: Destroyed by 8R-AWN with 8R-AWN's Boregun Performance ------------- Evolutions (0) 0 Regions Visited (3) 600 Robots Destroyed (19) 95 Value Destroyed (402) 402 Prototype IDs (24) 480 Alien Tech Used (0) 0 Bonus (348) 348 TOTAL SCORE: 1925 Bonus ------- Follower Combat Kills 67 Aligned with FarCom 300 Friendly Fire -19 Cogmind --------- Core Integrity 0/250 Matter 116/300 Energy 250/250 System Corruption 0% Temperature Cool (0) Movement Treading (200) Ox2 Location -10/Exiles Parts ------- > --- POWER (1) -------- Ion Engine > --- PROPULSION (2) --- Light Treads Light Treads > --- UTILITY (2) ------ Humpback > --- WEAPON (2) ------- Assault Rifle Assault Rifle > --- INVENTORY (24) --- Light Treads Large Matter Pod (150) High-capacity Matter Pod (200) AWS/Thermal Firepult YOLO Cannon Light Assault Rifle Improved Light Cannon Improved Light Cannon Improved Light Cannon Mini Grenade Launcher Peak State ------------ > --- POWER ------------ Light Nuclear Core > --- PROPULSION ------- Light Treads Light Treads > --- UTILITY ---------- Decoy Drone Bay > --- WEAPON ----------- Improved Light Cannon Improved Light Cannon > --- INVENTORY -------- Light Treads Mini Grenade Launcher [Rating: 23] Favorites ----------- Power Ion Engine Engine Ion Engine Power Core Light Nuclear Core Propulsion Light Treads Treads Light Treads Leg Aluminum Leg Utility High-capacity Storage Unit Device Decoy Drone Bay Storage High-capacity Storage Unit Weapon Improved Light Cannon Energy Gun Small Laser Energy Cannon Beam Cannon Ballistic Gun Assault Rifle Ballistic Cannon Improved Light Cannon Launcher Mini Grenade Launcher Special Weapon Mining Laser Build | -11 -10 -10 -10 ------- Run | Scr Mat Min Exi Slots Evolved . | . . . . Power . | . . . . Propulsion . | . . . . Utility . | . . . . Weapon . | . . . . Parts Attached 39 | 1 25 1 12 Power 3 | . 1 1 1 Engine 2 | . 1 . 1 Core 1 | . . 1 . Reactor . | . . . . Propulsion 8 | . 6 . 2 Treads 5 | . 3 . 2 Leg 3 | . 3 . . Wheel . | . . . . Hover . | . . . . Flight . | . . . . Utility 8 | 1 4 . 3 Device 1 | . . . 1 Storage 7 | 1 4 . 2 Processor . | . . . . Hackware . | . . . . Protection . | . . . . Artifact . | . . . . Weapon 20 | . 14 . 6 Energy Gun . | . . . . Energy Cannon 3 | . 3 . . Ballistic Gun 8 | . 6 . 2 Ballistic Cannon 5 | . 3 . 2 Launcher 2 | . . . 2 Special Weapon 2 | . 2 . . Impact Weapon . | . . . . Slashing Weapon . | . . . . Piercing Weapon . | . . . . Special Melee Weapon . | . . . . Unidentified Prototypes 1 | . . . 1 Parts Lost 5 | . 1 . 4 Power 1 | . . . 1 Propulsion 2 | . . . 2 Utility . | . . . . Weapon 2 | . 1 . 1 Highest Loss Streak 3 | . 1 . 3 Average Slot Usage (%) 95 | . 99 100 87 Engine 8 | . 13 11 1 Core 5 | . . 2 13 Treads 26 | . 23 28 28 Leg 1 | . 3 . . Storage 23 | . 28 28 16 Energy Cannon 3 | . 9 . . Ballistic Gun 2 | . 5 . . Ballistic Cannon 20 | . 10 28 27 Naked Turns . | . . . . Heaviest Build 93 | 14 77 77 93 Greatest Support 40 | 20 40 40 40 Greatest Overweight (x) 3 | . 3 1 2 Average Overweight (x) 1 | . . 1 1 Largest Inventory Capacity 24 | 8 20 20 24 Average Capacity 19 | 7 15 20 22 Most Carried 24 | 8 19 20 24 Average Carried 16 | 6 15 19 16 Final Capacity 24 | 8 20 20 24 Final Carried 20 | 8 18 20 14 Class Distribution -------------------- 65% | Hauler-Mutant 34% | Mutant Dominant Class ---------------- Mutant | -10/Materials Hauler-Mutant | -10/Mines Hauler-Mutant | -10/Exiles Resources | -11 -10 -10 -10 ----------- Run | Scr Mat Min Exi Matter Collected 1191 | 219 609 81 282 Remotely . | . . . . Salvage Created 660 | 84 494 75 7 Parts 33 | 7 19 7 . Haulers Intercepted 2 | . 2 . . Recyclers Shooed 1 | . . 1 . Parts Field Recycled . | . . . . Retrieved Matter . | . . . . Parts Self-Destructed . | . . . . Prevented . | . . . . Kills | -11 -10 -10 -10 ------- Run | Scr Mat Min Exi Combat Hostiles Destroyed 16 | . 8 4 4 Guns 2 | . 2 . . Cannons 11 | . 6 4 1 AOE 3 | . . . 3 Classes Destroyed 8 | 2 5 . 1 Tunneler 1 | 1 . . . Hauler 2 | . 2 . . Recycler 2 | 1 1 . . Operator 1 | . 1 . . Watcher 1 | . 1 . . Swarmer 5 | . 3 2 . Grunt 7 | . 5 2 . Assembled 4 | . . . 4 Best Kill Streak 4 | 2 2 2 4 Combat Bots Only 4 | . 2 2 4 Max Kills in Single Turn 2 | 1 1 1 2 Gunslinging . | . . . . Exploded 2 | . . . 2 Melee . | . . . . Uniques/NPCs Destroyed . | . . . . Combat | -11 -10 -10 -10 -------- Run | Scr Mat Min Exi Damage Taken 1533 | . 433 64 1036 Core 256 | . 71 . 185 Absorbed by Shields . | . . . . Core Remaining (%) 100 | 100 . . . Volleys Fired 97 | 3 45 8 41 Largest 2 | 2 2 2 2 Hottest 160 | 60 160 78 78 Shots Fired 178 | 6 84 16 72 Gun 48 | 6 16 . 26 Cannon 121 | . 61 16 44 Launcher 2 | . . . 2 Special 7 | . 7 . . Kinetic 121 | 3 32 16 70 Thermal 55 | 3 52 . . Explosive 2 | . . . 2 Electromagnetic . | . . . . Robot Hit Streak 14 | 2 7 4 14 Robot Miss Streak 3 | 1 3 2 3 Penetration Max . | . . . . Secondary Targets . | . . . . Shots Hit Robots 99 | 3 37 8 51 Core Hits 44 | 2 18 5 19 Critical Hits 3 | . 1 . 2 Critical Kills . | . . . . Critical Parts Destroyed 1 | . 1 . . Melee Attacks . | . . . . Impact . | . . . . Slashing . | . . . . Piercing . | . . . . Sneak Attacks . | . . . . Combat Hostiles . | . . . . Follow-up Attacks . | . . . . Damage Inflicted 2034 | 41 662 219 1112 Guns 387 | 41 113 . 233 Cannons 1393 | . 542 217 634 Explosions 245 | . . . 245 Melee . | . . . . Ramming 9 | . 7 2 . Kinetic 1381 | 41 256 217 867 Thermal 399 | . 399 . . Explosive 245 | . . . 245 Electromagnetic . | . . . . Impact . | . . . . Slashing . | . . . . Piercing . | . . . . Highest Corruption . | . . . . Average Corruption . | . . . . Corruption Purged . | . . . . Overload Shots . | . . . . Overflow Damage 13 | . 5 . 8 Projectiles 5 | . 5 . . Explosions 8 | . . . 8 Melee . | . . . . Knockbacks 9 | . 1 3 5 Impact . | . . . . Kinetic 8 | . 1 2 5 Secondary 1 | . . 1 . Self-Inflicted Damage 49 | . . . 49 Shots 1 | . . . 1 Rammed 3 | . 2 1 . Targets Rammed 3 | . 2 1 . Kicked . | . . . . Crushed . | . . . . Highest Temperature 360 | . 360 90 218 Average Temperature 104 | . 105 33 123 Received Heat Transfer 180 | . 144 36 . Effects 4 | . 1 . 3 Interference 3 | . . . 3 Matter Decay 1 | . 1 . . Siege Activations . | . . . . Robots Corrupted . | . . . . Combat Hostiles . | . . . . Parts Fried . | . . . . Impact Corruptions . | . . . . Robots Melted . | . . . . Combat Hostiles . | . . . . Parts Melted 1 | . 1 . . Heat Transferred 851 | . 851 . . Parts Sabotaged . | . . . . Parts Stolen . | . . . . Parts Stripped . | . . . . Power Chain Reactions . | . . . . Missiles Intercepted . | . . . . Alert | -11 -10 -10 -10 ------- Run | Scr Mat Min Exi Peak Influence 224 | 10 224 136 . Initial 8 | . 6 8 . Average 68 | 9 80 51 . Maximum Alert Level 1 | . 1 . . Low Security (%) 98 | 100 97 100 . Level 1 1 | . 2 . . Level 2 . | . . . . Level 3 . | . . . . Level 4 . | . . . . Level 5 . | . . . . High Security . | . . . . Max Security . | . . . . Squads Dispatched 1 | . 1 . . Investigation 1 | . 1 . . Extermination . | . . . . Reinforcement . | . . . . Assault . | . . . . Garrison . | . . . . Intercept . | . . . . Construction Impeded . | . . . . Haulers Reinforced . | . . . . Stealth | -11 -10 -10 -10 --------- Run | Scr Mat Min Exi Distress Signals . | . . . . Communications Jammed . | . . . . Distress Signals . | . . . . Times Spotted 35 | . 20 7 8 Peak Tracking Total 9 | . 3 3 9 Tactical Retreats 1 | . 1 . . Traps | -11 -10 -10 -10 ------- Run | Scr Mat Min Exi Traps Triggered 4 | . 4 . . Indirectly . | . . . . Trap Hack Attempts . | . . . . Triggered . | . . . . Disarmed . | . . . . Reprogrammed . | . . . . Reused . | . . . . Traps Extracted . | . . . . Installed . | . . . . Triggered . | . . . . Exploded 3 | . . . 3 Machines | -11 -10 -10 -10 ---------- Run | Scr Mat Min Exi Machines Disabled 8 | . 2 . 6 Max in Single Turn 2 | . 1 . 2 Machines Sabotaged . | . . . . Garrisons Compromised . | . . . . Overloaded Fab Kills . | . . . . Fab Network Shutdowns . | . . . . Hacking | -11 -10 -10 -10 --------- Run | Scr Mat Min Exi Machines Accessed 11 | . 7 2 2 Terminals 7 | . 6 1 . Fabricators . | . . . . Repair Stations . | . . . . Recycling Units 1 | . 1 . . Scanalyzers . | . . . . Garrison Access . | . . . . Total Hacks 32 | . 23 4 5 Successful 22 | . 15 2 5 Failed 9 | . 7 2 . Catastrophic . | . . . . Database Lockouts 1 | . 1 . . Manual 26 | . 22 3 1 Terminals 23 | . 20 3 . Fabricators . | . . . . Repair Stations . | . . . . Recycling Units 3 | . 3 . . Scanalyzers . | . . . . Garrison Access . | . . . . Terminal Hacks 14 | . 7 2 5 Record 4 | . . . 4 Part Schematic 2 | . 2 . . Robot Analysis 1 | . . 1 . Open Door 1 | . . 1 . Branch Access Points 1 | . 1 . . Unreport Threat 2 | . 2 . . Transport Status 1 | . 1 . . Hauler Manifests 1 | . 1 . . EX-Prototype ID Bank 1 | . . . 1 Fabricator Hacks . | . . . . Repair Station Hacks . | . . . . Recycling Unit Hacks 3 | . 3 . . Process 1 | . 1 . . Report Inventory 1 | . 1 . . Retrieve Matter 1 | . 1 . . Scanalyzer . | . . . . Garrison Access Hacks . | . . . . Unauthorized Hacks 5 | . 5 . . Terminals 5 | . 5 . . Botnet 4 | . 4 . . Operators 1 | . 1 . . Fabricators . | . . . . Repair Stations . | . . . . Recycling Units . | . . . . Scanalyzers . | . . . . Garrison Access . | . . . . Data Cores Recovered 1 | . 1 . . Used 1 | . 1 . . Hacking Detections 9 | . 8 1 . Full Trace Events 1 | . . 1 . Feedback Events . | . . . . Feedback Blocked . | . . . . Robot Schematics Acquired . | . . . . Robots Built . | . . . . Matter . | . . . . Time . | . . . . Total Robot Build Rating . | . . . . Part Schematics Acquired 2 | . 2 . . Parts Built . | . . . . Matter . | . . . . Time . | . . . . Total Part Build Rating . | . . . . Parts Repaired . | . . . . Time . | . . . . Parts Recycled . | . . . . Recycled Matter 404 | . 404 . . Retrieved Matter 605 | . 605 . . Retrieved Components . | . . . . Parts Scanalyzed . | . . . . Part Schematics Acquired . | . . . . Parts Damaged . | . . . . Bothacking | -11 -10 -10 -10 ------------ Run | Scr Mat Min Exi Used RIF Installer . | . . . . Robots Hacked . | . . . . Non-combat . | . . . . Combat . | . . . . Robot Hacks Applied . | . . . . Relay Couplers Released . | . . . . Robots Rewired . | . . . . Allies Hacked . | . . . . Hacks Repelled . | . . . . Allies | -11 -10 -10 -10 -------- Run | Scr Mat Min Exi Total Allies 2 | . . 2 . Largest Group 2 | . . 2 2 Highest-Rated Group 45 | . . 45 45 Highest-Rated Ally 31 | . . 31 31 Total Orders . | . . . . Ally Attacks 9 | . . 9 . Total Damage 148 | . . 148 . Kills 3 | . . 3 . Allies Corrupted . | . . . . Allies Melted . | . . . . Intel | -11 -10 -10 -10 ------- Run | Scr Mat Min Exi Robot Analysis Total 1 | . . 1 . Derelict Logs Recovered 1 | . . 1 . Drone Launches . | . . . . Drone Recoveries . | . . . . Exploration | -11 -10 -10 -10 ------------- Run | Scr Mat Min Exi Turns Passed 3717 | 31 1444 842 1400 Spaces Moved 1794 | 16 712 448 618 Core . | . . . . Treads 1648 | . 582 448 618 Legs 146 | 16 130 . . Wheels . | . . . . Hover . | . . . . Flight . | . . . . Fastest Speed 120 | 120 120 180 160 Average Speed 180 | 120 170 180 194 Slowest Speed 210 | 120 210 180 200 Overloaded Moves . | . . . . Propulsion Burnouts . | . . . . Robots Hopped . | . . . . Cave-ins Triggered . | . . . . Exploration Rate (%) 65 | 3 90 98 70 Regions Visited 3 Branch Regions 2 Pre-discovered Areas 1 | . . . 1 Known Exits Taken 1 | . 1 . . Unknown Exits Taken 2 | 1 . 1 . Scrap Searched 1 | . . 1 . Spaces Dug 3 | . 3 . . Terrain Destroyed 18 | . 5 1 12 Melee . | . . . . Projectile 7 | . 5 1 1 AOE 11 | . . . 11 Terrain Rammed . | . . . . Walls Destroyed . | . . . . Machines Disabled . | . . . . Actions | -11 -10 -10 -10 --------- Run | Scr Mat Min Exi Total 2093 | 21 849 468 755 Wait 40 | . 19 7 14 Move 1791 | 15 711 447 618 Hop . | . . . . Pick Up 70 | 2 23 2 43 Fast Attach 13 | 1 9 1 2 Attach 7 | . 2 . 5 Detach 4 | . 3 . 1 Swap 19 | . 14 . 5 Drop 49 | . 21 2 26 Fire 97 | 3 45 8 41 Melee . | . . . . Ram . | . . . . Kick . | . . . . Crush 3 | . 2 1 . Escape Stasis . | . . . . Rewire . | . . . . Trap . | . . . . Miscellaneous . | . . . . Route ------- -11/Scrapyard -10/Materials (discovered 5 exits: [*Mat x3] / *Min x2) -10/Mines (discovered 3 exits: [*Mat x2] / *Exi) -10/Exiles (discovered 1 exit: [*Min]) History --------- Turn | Location | Event 11 | -11/Scrapyard | Discovered new exit (range 3) 32 | -11/Scrapyard | Entered Materials 219 | -10/Materials | Discovered new exit (range 7) 286 | -10/Materials | Discovered new exit (range 9) 294 | -10/Materials | Identified exit to Mines 321 | -10/Materials | Build established: Mutant 368 | -10/Materials | Central database locked down 473 | -10/Materials | Discovered new exit (range 8) 811 | -10/Materials | Discovered new exit (range 14) 1476 | -10/Materials | Entered Mines 1571 | -10/Mines | Discovered new exit (range 13) 1609 | -10/Mines | Build established: Hauler-Mutant 1893 | -10/Mines | Learned Materials garrison access intel 1969 | -10/Mines | Found the Drone Emporium 1979 | -10/Mines | Found Prototype Device 2061 | -10/Mines | Deemed a non-threat by the Exiles lab entrance 2061 | -10/Mines | Discovered new exit (range 5) 2164 | -10/Mines | Discovered new exit (range 5) 2318 | -10/Mines | Entered Exiles 2318 | -10/Exiles | Accompanied by 2 allies 2348 | -10/Exiles | Led the pair of lost Derelicts to a safe place 2363 | -10/Exiles | Met 8R-AWN 2408 | -10/Exiles | Met EX-HEX 2498 | -10/Exiles | Met EX-DEC 2529 | -10/Exiles | Learned location of Zion (-6) 2771 | -10/Exiles | Discovered new exit (range 10) 2797 | -10/Exiles | Identified Decoy Drone Bay 3236 | -10/Exiles | Met EX-BIN 3260 | -10/Exiles | Aligned with FarCom system 3262 | -10/Exiles | Given EX-Vault access code 3308 | -10/Exiles | Opened EX-Vault 3320 | -10/Exiles | Found YOLO Cannon 3323 | -10/Exiles | Found AWS/Thermal 3332 | -10/Exiles | Found Firepult 3373 | -10/Exiles | Warned to stay clear of 0b10 Research branches 3510 | -10/Exiles | Attacked by the Exiles 3652 | -10/Exiles | Core integrity fell below 50% 3685 | -10/Exiles | Core integrity fell below 20% 3686 | -10/Exiles | Lost 3 parts (1p1n1w) 3718 | -10/Exiles | Destroyed by 8R-AWN with 8R-AWN's Boregun Last Messages --------------- 03655_ Penetrated by HV Slug. 03664_ HV Slug penetrates Wall. 03668_ HV Slug penetrates Machine. 03668_ HV Slug penetrates Wall. 03672_ Overheating: System interference. 03672_ Imp. Light Cannon temporarily disabled. 03672_ Penetrated by HV Slug. 03674_ Destroyed Prototype Protection. 03676_ Penetrated by HV Slug. 03693_ Critical hit. 03693_ Lgt. Treads destroyed. 03693_ Penetrated by HV Slug. 03698_ HV Slug penetrates Wall. 03702_ Penetrated by HV Slug. 03704_ Destroyed Prototype Device. 03706_ Penetrated by HV Slug. 03710_ HV Slug penetrates Wall. 03710_ HV Slug penetrates Earth. 03710_ HV Slug penetrates Wall. 03714_ Penetrated by HV Slug. Map ----- +----------------------------------------------------+ | ?????????????????????????????????????????????????? | | ?????????????????????????????????????????????????? | | ?????????????????????????????????????????????????? | | ?????????????????????????????????????????????????? | | ????????????????#####????????????????????????????? | | ???????????????## ##???????????????????????????? | | ???????????????# #???????????????????????????? | | ???????????????# < #???????????????????????????? | | ???????????????# ###?????????????????????????? | | ???????????????# !!! #?????????????????????????? | | ???????????????#|!!! #??????????????????????????? | | ???????????????##!!! #??????????????????????????? | | ????????????????# ! ##?????????????????????????? | | ????????????????## #????????????#######??????? | | ?????????????? ??# #######??????# "#??????? | | ??????????????? ?# #""##?????# "#??????? | | ???????????????? ## #?????# "#??????? | | ????????????????# ##" ##???## ""#??????? | | ?????????????????#;"" #####" ""#??????? | | ??????????????????#;## ##" ""#??????? | | ???????????????????# ## #"" ###??????? | | ????????????????????# #"## #???????? | | ?????????????????????#;##;### #???????? | | ??????????????????????# # ### #???????? | | ????????????????????# ;#;;;;# ####????? | | ??????????????????????#!!@ % "#????? | | ??????????????????????#!! ###### | | ??????????????????????#! # " % ""# | | ??????????????????????#! ####" | | ??????????????????????# !" g ####??#"# | | ??????????????????????#######;;#?????#### % | | ?????????????????????????????###????????##" | | ??????????????????????????????????????????### | | ????????????????????????????????????????????## | | ?????????????????????????????????????????????## | | ??????????????????????????????????????????????##" | | ???????????????????????????????????????????????#"" | | ??????????????????????????????????????????????##" | | ??????????????????????????????????????????????#"" | | ??????????????????????????????????????????????#""" | | ?????????????????????????????????????????????#""" | | ?????????????????????????????????????????????#""" | | ?????????????????????????????????????????????#"" | | ?????????????????????????????????????????????#""" | | ??????????????????????????????????????????????"" | | ??????????????????????????????????????????????#"" | | ??????????????????????????????????????????????#""" | | ???????????????????????????????????????????????# | | ???????????????????????????????????????????????#" | | ???????????????????????????????????????????????#"" | +----------------------------------------------------+ Best States ------------- Heat Dissipation 25 Energy Generation 14 Energy Capacity 250 Matter Stores 300 Matter Capacity 300 Sight Range 16 Terrain Scan Density 10 Evasion (%) 40 Recoil Reduction 2 Item Schematics ----------------- Hcp. Storage Unit | -10/Materials | Hacked Lrg. Storage Unit | -10/Materials | Hacked Robot Schematics ------------------ None Fabricated ------------ Nothing Alien Tech Used ----------------- None Achievements -------------- None Challenges ------------ None Game ------ Seed PointPowerTriangulator Manual? 0 Play Time 00:21:11 Cumulative 87.3 hours Start 2020.11.08 @ 10:06:21 End 2020.11.08 @ 10:26:17 Sessions 1 Manual Loads 0 Difficulty Rogue Special Mode Halloween2020/ForbiddenLore Game No. 73 Rogue 73 Adventurer 0 Explorer 0 Win Type - Total 0 Types 0/0/0/0/0/0/0/0/0 Lore% 48 Gallery% 55 Achievement% 52 Wizard Run 0 Options --------- ASCII 0 Keyboard 1 Movement Numpad Keybinds 0 Fullscreen 1 Font 12/Terminus Map View 83x54 Tactical HUD 1 Map Filters NONE Filters NONE Steam 1 RUN: 0d979944-9925-49cd-9af6-79e8c0ff063a